[Event "*** Titled Tuesday Blitz"]
[Site "Chess.com"]
[Date "2020.12.01"]
[Round "7"]
[White "CalinGheorghiu"]
[Black "Twannibal"]
[Result "1-0"]
[WhiteElo "2399"]
[BlackElo "2472"]
[TimeControl "180+1"]
[EndTime "11:16:33 PST"]
[Termination "CalinGheorghiu won on time"]

1. e4 {[%clk 0:02:51]} 1... e5 {[%clk 0:02:56.5]} 2. Nf3 {[%clk 0:02:50.3]} 2...
Nf6 {[%clk 0:02:57]} 3. Nc3 {[%clk 0:02:49.5]} 3... Nc6 {[%clk 0:02:57]} 4. d4
{[%clk 0:02:49.7]} 4... exd4 {[%clk 0:02:57]} 5. Nxd4 {[%clk 0:02:50.3]} 5...
Bb4 {[%clk 0:02:57.2]} 6. Nxc6 {[%clk 0:02:50.3]} 6... bxc6 {[%clk 0:02:58.1]}
7. Bd3 {[%clk 0:02:50.4]} 7... O-O {[%clk 0:02:57.1]} 8. O-O {[%clk 0:02:49.6]}
8... d5 {[%clk 0:02:57.4]} 9. exd5 {[%clk 0:02:49]} 9... cxd5 {[%clk 0:02:58.3]}
10. h3 {[%clk 0:02:48.7]} 10... Re8 {[%clk 0:02:58.4]} 11. Qf3 {[%clk
0:02:47.5]} 11... Rb8 {[%clk 0:02:58.7]} 12. Bf4 {[%clk 0:02:45.5]} 12... Bb7
{[%clk 0:02:40.4]} 13. Ne2 {[%clk 0:02:22.4]} 13... d4 {[%clk 0:02:24.4]} 14.
Qg3 {[%clk 0:02:20.8]} 14... Nh5 {[%clk 0:02:23.3]} 15. Qg4 {[%clk 0:02:19.8]}
15... Nxf4 {[%clk 0:02:23.5]} 16. Nxf4 {[%clk 0:02:18.8]} 16... g6 {[%clk
0:01:58.7]} 17. Bc4 {[%clk 0:01:45.1]} 17... Qf6 {[%clk 0:01:30.7]} 18. a3
{[%clk 0:01:24.3]} 18... Bd6 {[%clk 0:01:30.3]} 19. Nd3 {[%clk 0:01:19]} 19...
Re4 {[%clk 0:01:29.2]} 20. Qd1 {[%clk 0:01:07.3]} 20... Rbe8 {[%clk 0:01:19.7]}
21. a4 {[%clk 0:00:53.1]} 21... Ba8 {[%clk 0:01:09]} 22. a5 {[%clk 0:00:50.9]}
22... Qg5 {[%clk 0:01:08.7]} 23. Qf3 {[%clk 0:00:36.9]} 23... R4e7 {[%clk
0:00:43.3]} 24. Qg4 {[%clk 0:00:33.4]} 24... Qf6 {[%clk 0:00:41.5]} 25. Rfe1
{[%clk 0:00:29.3]} 25... Rxe1+ {[%clk 0:00:35.9]} 26. Rxe1 {[%clk 0:00:28.6]}
26... Rxe1+ {[%clk 0:00:31]} 27. Nxe1 {[%clk 0:00:29.5]} 27... Bc6 {[%clk
0:00:28.1]} 28. Nd3 {[%clk 0:00:27.2]} 28... Kg7 {[%clk 0:00:27.9]} 29. a6
{[%clk 0:00:26.7]} 29... h5 {[%clk 0:00:25.4]} 30. Qc8 {[%clk 0:00:19.7]} 30...
Qg5 {[%clk 0:00:25.3]} 31. Ne1 {[%clk 0:00:13.6]} 31... Qf4 {[%clk 0:00:15.8]}
32. Qb8 {[%clk 0:00:08.5]} 32... Bc5 {[%clk 0:00:12.5]} 33. g3 {[%clk
0:00:05.3]} 33... Qe4 {[%clk 0:00:10.2]} 34. Kf1 {[%clk 0:00:04.1]} 34... Qh1+
{[%clk 0:00:06.1]} 35. Ke2 {[%clk 0:00:03.9]} 35... Bb6 {[%clk 0:00:07]} 36. Qd8
{[%clk 0:00:02.8]} 36... Qxh3 {[%clk 0:00:05.8]} 37. Qe7 {[%clk 0:00:03]} 37...
Qg4+ {[%clk 0:00:05.6]} 38. f3 {[%clk 0:00:02.7]} 38... Qxg3 {[%clk 0:00:04.5]}
39. Qxf7+ {[%clk 0:00:02.4]} 39... Kh6 {[%clk 0:00:05]} 40. Qf8+ {[%clk
0:00:02.5]} 40... Kg5 {[%clk 0:00:03.3]} 41. Qe7+ {[%clk 0:00:02.7]} 41... Kh6
{[%clk 0:00:01.6]} 42. Qf8+ {[%clk 0:00:02.3]} 42... Kg5 {[%clk 0:00:01.8]} 43.
Qe7+ {[%clk 0:00:01.5]} 1-0

[Event "*** Titled Tuesday Blitz"]
[Site "Chess.com"]
[Date "2020.12.01"]
[Round "7"]
[White "ajkom197"]
[Black "TrenerChos"]
[Result "1-0"]
[WhiteElo "2332"]
[BlackElo "2174"]
[TimeControl "180+1"]
[EndTime "11:16:33 PST"]
[Termination "ajkom197 won on time"]

1. d4 {[%clk 0:03:00.9]} 1... c5 {[%clk 0:03:00.9]} 2. d5 {[%clk 0:03:00.2]}
2... Nf6 {[%clk 0:02:58.6]} 3. Nc3 {[%clk 0:02:59.9]} 3... d6 {[%clk 0:02:57.8]}
4. Nf3 {[%clk 0:02:59.3]} 4... g6 {[%clk 0:02:57.2]} 5. e4 {[%clk 0:02:59.3]}
5... Bg7 {[%clk 0:02:57.3]} 6. Be2 {[%clk 0:02:58.6]} 6... O-O {[%clk
0:02:55.1]} 7. O-O {[%clk 0:02:58.2]} 7... Bg4 {[%clk 0:02:54.3]} 8. Nd2 {[%clk
0:02:55.5]} 8... Bxe2 {[%clk 0:02:50.8]} 9. Qxe2 {[%clk 0:02:55.6]} 9... a6
{[%clk 0:02:51]} 10. a4 {[%clk 0:02:55.4]} 10... Nbd7 {[%clk 0:02:47]} 11. Nc4
{[%clk 0:02:51.6]} 11... Qc7 {[%clk 0:02:41]} 12. Bf4 {[%clk 0:02:48.4]} 12...
Nh5 {[%clk 0:02:35.6]} 13. Bd2 {[%clk 0:02:44.8]} 13... Rfb8 {[%clk 0:02:20.9]}
14. h3 {[%clk 0:02:42]} 14... b5 {[%clk 0:02:19]} 15. axb5 {[%clk 0:02:41.1]}
15... axb5 {[%clk 0:02:19.9]} 16. Rxa8 {[%clk 0:02:40.7]} 16... Rxa8 {[%clk
0:02:16.5]} 17. Nxb5 {[%clk 0:02:40.5]} 17... Qb7 {[%clk 0:02:13.4]} 18. Nc3
{[%clk 0:02:38.6]} 18... Ne5 {[%clk 0:02:12.4]} 19. Nxe5 {[%clk 0:02:31]} 19...
Bxe5 {[%clk 0:02:13.3]} 20. b3 {[%clk 0:02:30.9]} 20... Ra3 {[%clk 0:01:46.7]}
21. Qd3 {[%clk 0:02:03.5]} 21... Ra8 {[%clk 0:01:34]} 22. f4 {[%clk 0:01:59]}
22... Bd4+ {[%clk 0:01:32.7]} 23. Kh2 {[%clk 0:01:58.5]} 23... Ng7 {[%clk
0:01:21.1]} 24. Nb5 {[%clk 0:01:47.4]} 24... Bf6 {[%clk 0:01:19.4]} 25. Bc3
{[%clk 0:01:45.6]} 25... Bxc3 {[%clk 0:01:14.7]} 26. Nxc3 {[%clk 0:01:46.5]}
26... Qb4 {[%clk 0:01:13.9]} 27. f5 {[%clk 0:01:11.6]} 27... Ne8 {[%clk
0:00:54.1]} 28. fxg6 {[%clk 0:01:08.5]} 28... hxg6 {[%clk 0:00:55]} 29. Ne2
{[%clk 0:00:42]} 29... Nf6 {[%clk 0:00:50.8]} 30. Ng3 {[%clk 0:00:41.7]} 30...
Ra2 {[%clk 0:00:46.6]} 31. e5 {[%clk 0:00:33.9]} 31... dxe5 {[%clk 0:00:38]} 32.
d6 {[%clk 0:00:34]} 32... e4 {[%clk 0:00:18.7]} 33. Qd1 {[%clk 0:00:33.5]} 33...
Qb7 {[%clk 0:00:10.2]} 34. Rxf6 {[%clk 0:00:26.9]} 34... exf6 {[%clk 0:00:09]}
35. d7 {[%clk 0:00:26.9]} 35... Ra8 {[%clk 0:00:07.6]} 36. d8=Q+ {[%clk
0:00:27]} 36... Rxd8 {[%clk 0:00:08.1]} 37. Qxd8+ {[%clk 0:00:27.7]} 37... Kg7
{[%clk 0:00:08.8]} 38. Qd2 {[%clk 0:00:26.3]} 38... Qc6 {[%clk 0:00:03.2]} 39.
Qe3 {[%clk 0:00:25.3]} 39... f5 {[%clk 0:00:02.8]} 40. c3 {[%clk 0:00:24.2]}
40... Qd5 {[%clk 0:00:02.8]} 41. b4 {[%clk 0:00:23.2]} 41... cxb4 {[%clk
0:00:01.5]} 42. cxb4 {[%clk 0:00:24.1]} 42... Qc4 {[%clk 0:00:01.5]} 43. Qd2
{[%clk 0:00:15.2]} 1-0

[Event "*** Titled Tuesday Blitz"]
[Site "Chess.com"]
[Date "2020.12.01"]
[Round "7"]
[White "Taktikmonster"]
[Black "Loy_Konstantin"]
[Result "0-1"]
[WhiteElo "2186"]
[BlackElo "2357"]
[TimeControl "180+1"]
[EndTime "11:16:33 PST"]
[Termination "Loy_Konstantin won on time"]

1. e4 {[%clk 0:03:00.9]} 1... c5 {[%clk 0:03:00.2]} 2. Nf3 {[%clk 0:03:00.5]}
2... d6 {[%clk 0:03:00.6]} 3. d4 {[%clk 0:03:01.1]} 3... cxd4 {[%clk 0:03:01.5]}
4. Nxd4 {[%clk 0:03:01.5]} 4... Nf6 {[%clk 0:03:01.8]} 5. Nc3 {[%clk 0:03:02]}
5... g6 {[%clk 0:03:02.3]} 6. Be3 {[%clk 0:03:01.6]} 6... Bg7 {[%clk 0:03:02.1]}
7. f3 {[%clk 0:03:02]} 7... O-O {[%clk 0:03:02.3]} 8. Qd2 {[%clk 0:03:02.6]}
8... Nc6 {[%clk 0:03:02.4]} 9. O-O-O {[%clk 0:03:02.9]} 9... Bd7 {[%clk
0:03:02.2]} 10. Kb1 {[%clk 0:03:00.5]} 10... Rc8 {[%clk 0:03:00.9]} 11. g4
{[%clk 0:02:58.5]} 11... Ne5 {[%clk 0:03:00.7]} 12. h4 {[%clk 0:02:57.1]} 12...
Qa5 {[%clk 0:02:59.8]} 13. h5 {[%clk 0:02:55.2]} 13... Nxf3 {[%clk 0:02:54.1]}
14. Nxf3 {[%clk 0:02:43.9]} 14... Rxc3 {[%clk 0:02:54.4]} 15. Qxc3 {[%clk
0:02:38.9]} 15... Qxc3 {[%clk 0:02:54.2]} 16. bxc3 {[%clk 0:02:39.8]} 16... Bxg4
{[%clk 0:02:54.2]} 17. Bg2 {[%clk 0:02:11.8]} 17... Nxe4 {[%clk 0:02:53.9]} 18.
Bd4 {[%clk 0:02:06.7]} 18... e5 {[%clk 0:02:53.1]} 19. Rh4 {[%clk 0:01:27.3]}
19... Bxf3 {[%clk 0:02:09.1]} 20. Bxf3 {[%clk 0:01:24.9]} 20... Ng5 {[%clk
0:02:09.1]} 21. Bd5 {[%clk 0:01:01.6]} 21... exd4 {[%clk 0:02:05.5]} 22. cxd4
{[%clk 0:01:02.5]} 22... Ne6 {[%clk 0:01:48.5]} 23. hxg6 {[%clk 0:01:01.1]}
23... hxg6 {[%clk 0:01:47.3]} 24. Rg4 {[%clk 0:00:55.9]} 24... Re8 {[%clk
0:01:36.3]} 25. Re1 {[%clk 0:00:51.9]} 25... Kf8 {[%clk 0:01:27.7]} 26. Bxe6
{[%clk 0:00:43.8]} 26... fxe6 {[%clk 0:01:07]} 27. Rxg6 {[%clk 0:00:43.5]} 27...
Kf7 {[%clk 0:01:04.2]} 28. Rg4 {[%clk 0:00:39.5]} 28... Re7 {[%clk 0:00:50.2]}
29. c3 {[%clk 0:00:30.4]} 29... e5 {[%clk 0:00:47]} 30. d5 {[%clk 0:00:27.4]}
30... Ke8 {[%clk 0:00:38.2]} 31. Kc2 {[%clk 0:00:25.6]} 31... Kd7 {[%clk
0:00:35.2]} 32. Kd3 {[%clk 0:00:25.4]} 32... Bh6 {[%clk 0:00:35]} 33. c4 {[%clk
0:00:21.1]} 33... b6 {[%clk 0:00:34.2]} 34. Rh1 {[%clk 0:00:20]} 34... Bf4
{[%clk 0:00:27.5]} 35. Rh8 {[%clk 0:00:19.4]} 35... Kc7 {[%clk 0:00:21.5]} 36.
Ke4 {[%clk 0:00:18.4]} 36... Bd2 {[%clk 0:00:16.3]} 37. Rgg8 {[%clk 0:00:17.7]}
37... Bb4 {[%clk 0:00:13.8]} 38. Rc8+ {[%clk 0:00:17.1]} 38... Kb7 {[%clk
0:00:14.1]} 39. Rb8+ {[%clk 0:00:13.4]} 39... Ka6 {[%clk 0:00:14.2]} 40. Rbd8
{[%clk 0:00:06.6]} 40... Rg7 {[%clk 0:00:13]} 41. Rh6 {[%clk 0:00:06.2]} 41...
Rg4+ {[%clk 0:00:11.6]} 42. Kd3 {[%clk 0:00:05.8]} 42... Rd4+ {[%clk 0:00:11.4]}
43. Ke3 {[%clk 0:00:06]} 43... Rxc4 {[%clk 0:00:11.7]} 44. Rd7 {[%clk
0:00:04.2]} 44... Bc5+ {[%clk 0:00:10.6]} 45. Kd3 {[%clk 0:00:02.7]} 45... Rd4+
{[%clk 0:00:10.5]} 46. Kc3 {[%clk 0:00:03.2]} 46... Rxd5 {[%clk 0:00:10.6]} 0-1

[Event "*** Titled Tuesday Blitz"]
[Site "Chess.com"]
[Date "2020.12.01"]
[Round "7"]
[White "pedromartinez91"]
[Black "Bulldog167"]
[Result "1-0"]
[WhiteElo "2457"]
[BlackElo "2590"]
[TimeControl "180+1"]
[EndTime "11:16:34 PST"]
[Termination "pedromartinez91 won on time"]

1. e4 {[%clk 0:02:19.5]} 1... d6 {[%clk 0:02:47.8]} 2. d4 {[%clk 0:02:15.4]}
2... Nf6 {[%clk 0:02:48]} 3. Nc3 {[%clk 0:02:15.7]} 3... g6 {[%clk 0:02:48.3]}
4. Be2 {[%clk 0:02:15.4]} 4... Bg7 {[%clk 0:02:48.4]} 5. g4 {[%clk 0:02:16.3]}
5... h5 {[%clk 0:02:43.9]} 6. g5 {[%clk 0:02:16]} 6... Nfd7 {[%clk 0:02:44.1]}
7. f4 {[%clk 0:02:15.5]} 7... c5 {[%clk 0:02:21.1]} 8. Be3 {[%clk 0:02:14.8]}
8... Nc6 {[%clk 0:02:07.5]} 9. Nf3 {[%clk 0:02:11.2]} 9... cxd4 {[%clk
0:02:04.7]} 10. Nxd4 {[%clk 0:02:11.7]} 10... O-O {[%clk 0:02:02.7]} 11. Qd2
{[%clk 0:02:00.4]} 11... Nxd4 {[%clk 0:01:54.8]} 12. Bxd4 {[%clk 0:02:01.3]}
12... e5 {[%clk 0:01:49.2]} 13. Be3 {[%clk 0:02:01.3]} 13... exf4 {[%clk
0:01:38.9]} 14. Bxf4 {[%clk 0:02:01.7]} 14... Ne5 {[%clk 0:01:38.7]} 15. O-O-O
{[%clk 0:02:00.7]} 15... Be6 {[%clk 0:01:20.9]} 16. Qxd6 {[%clk 0:01:59.4]}
16... Qa5 {[%clk 0:01:20.6]} 17. Qa3 {[%clk 0:01:17.6]} 17... Qxa3 {[%clk
0:01:10.3]} 18. bxa3 {[%clk 0:01:18.5]} 18... Ng4 {[%clk 0:01:10.2]} 19. Nd5
{[%clk 0:01:15.7]} 19... Nf2 {[%clk 0:01:07.1]} 20. Bc4 {[%clk 0:01:14.3]} 20...
Kh7 {[%clk 0:00:45.8]} 21. Bb3 {[%clk 0:01:05.8]} 21... Rac8 {[%clk 0:00:35.6]}
22. Rhf1 {[%clk 0:01:04.7]} 22... Nxe4 {[%clk 0:00:20]} 23. Be3 {[%clk
0:00:59.5]} 23... a6 {[%clk 0:00:14.7]} 24. a4 {[%clk 0:00:53.4]} 24... Nc5
{[%clk 0:00:04.2]} 25. Bxc5 {[%clk 0:00:50.2]} 25... Rxc5 {[%clk 0:00:04.1]} 26.
h4 {[%clk 0:00:42.5]} 26... Rfc8 {[%clk 0:00:04]} 27. Rf2 {[%clk 0:00:31.9]}
27... Bf5 {[%clk 0:00:04.2]} 28. Rxf5 {[%clk 0:00:25.4]} 28... gxf5 {[%clk
0:00:05.1]} 29. Rf1 {[%clk 0:00:24.6]} 29... Rd8 {[%clk 0:00:02]} 30. Rxf5
{[%clk 0:00:17]} 30... Kh8 {[%clk 0:00:02.4]} 31. Kb1 {[%clk 0:00:11.7]} 31...
Rd7 {[%clk 0:00:02.7]} 32. c4 {[%clk 0:00:11.9]} 32... Rc6 {[%clk 0:00:02.6]}
33. a5 {[%clk 0:00:11.7]} 33... Re6 {[%clk 0:00:02.7]} 34. c5 {[%clk 0:00:11.3]}
34... Re2 {[%clk 0:00:02.4]} 35. Nb6 {[%clk 0:00:08.8]} 35... Rdd2 {[%clk
0:00:01.9]} 36. Nc4 {[%clk 0:00:07]} 36... Rd3 {[%clk 0:00:01.7]} 37. Kc1 {[%clk
0:00:07.2]} 37... Re1+ {[%clk 0:00:01.8]} 38. Kc2 {[%clk 0:00:07.3]} 38... Rc3+
{[%clk 0:00:02.7]} 39. Kd2 {[%clk 0:00:07.7]} 39... Re7 {[%clk 0:00:03.6]} 40.
Rd5 {[%clk 0:00:07.4]} 40... Rh3 {[%clk 0:00:03.9]} 41. Rd8+ {[%clk 0:00:08]}
41... Kh7 {[%clk 0:00:03.9]} 42. Bc2+ {[%clk 0:00:08.9]} 1-0

[Event "*** Titled Tuesday Blitz"]
[Site "Chess.com"]
[Date "2020.12.01"]
[Round "7"]
[White "HackingKid98"]
[Black "Brave_spirit12"]
[Result "0-1"]
[WhiteElo "2354"]
[BlackElo "2491"]
[TimeControl "180+1"]
[EndTime "11:16:36 PST"]
[Termination "Brave_spirit12 won on time"]

1. d4 {[%clk 0:03:00.9]} 1... Nf6 {[%clk 0:02:59]} 2. c4 {[%clk 0:03:00.6]} 2...
e6 {[%clk 0:02:58.1]} 3. g3 {[%clk 0:03:00.2]} 3... d5 {[%clk 0:02:59]} 4. Bg2
{[%clk 0:03:00.5]} 4... Be7 {[%clk 0:02:57.4]} 5. Nf3 {[%clk 0:03:01.2]} 5...
O-O {[%clk 0:02:57.5]} 6. Nc3 {[%clk 0:03:01.5]} 6... Ne4 {[%clk 0:02:54.8]} 7.
O-O {[%clk 0:02:34.3]} 7... c6 {[%clk 0:02:52]} 8. Nxe4 {[%clk 0:02:31.4]} 8...
dxe4 {[%clk 0:02:51]} 9. Nd2 {[%clk 0:02:30.7]} 9... f5 {[%clk 0:02:46.6]} 10.
e3 {[%clk 0:02:28]} 10... c5 {[%clk 0:02:43.2]} 11. Nb3 {[%clk 0:02:17.5]} 11...
Nc6 {[%clk 0:02:41.1]} 12. Nxc5 {[%clk 0:02:11]} 12... Bxc5 {[%clk 0:02:38.9]}
13. dxc5 {[%clk 0:02:11.9]} 13... Qe7 {[%clk 0:02:36.6]} 14. Qd6 {[%clk
0:02:10.4]} 14... Rd8 {[%clk 0:02:30.7]} 15. Qxe7 {[%clk 0:02:09]} 15... Nxe7
{[%clk 0:02:31.6]} 16. b4 {[%clk 0:02:08.8]} 16... Bd7 {[%clk 0:02:29.9]} 17.
Bb2 {[%clk 0:02:05.9]} 17... Rac8 {[%clk 0:02:22]} 18. Rfd1 {[%clk 0:01:54]}
18... Ba4 {[%clk 0:02:17.3]} 19. Rd6 {[%clk 0:01:53.1]} 19... Nc6 {[%clk
0:02:10.1]} 20. a3 {[%clk 0:01:48.5]} 20... Bb3 {[%clk 0:01:48.7]} 21. Bf1
{[%clk 0:01:44.4]} 21... Kf7 {[%clk 0:01:39.7]} 22. Bc3 {[%clk 0:01:28.1]} 22...
Nb8 {[%clk 0:01:31.5]} 23. Be5 {[%clk 0:01:08.9]} 23... Nd7 {[%clk 0:01:27.7]}
24. Bd4 {[%clk 0:00:53.3]} 24... Nf8 {[%clk 0:01:10.6]} 25. Rxd8 {[%clk
0:00:32.6]} 25... Rxd8 {[%clk 0:01:11.5]} 26. Rb1 {[%clk 0:00:31.6]} 26... Bc2
{[%clk 0:01:04.5]} 27. Rb2 {[%clk 0:00:31]} 27... Ba4 {[%clk 0:01:01.4]} 28. Rd2
{[%clk 0:00:27.8]} 28... Ng6 {[%clk 0:00:56.3]} 29. Be2 {[%clk 0:00:18.5]} 29...
Ne5 {[%clk 0:00:47.9]} 30. Kf1 {[%clk 0:00:12.2]} 30... Bb3 {[%clk 0:00:36.6]}
31. Ke1 {[%clk 0:00:10.8]} 31... Nxc4 {[%clk 0:00:34.2]} 32. Bxc4 {[%clk
0:00:09.4]} 32... Bxc4 {[%clk 0:00:35.1]} 33. Bc3 {[%clk 0:00:08.7]} 33... Bd3
{[%clk 0:00:34.4]} 34. Bd4 {[%clk 0:00:08.3]} 34... g5 {[%clk 0:00:33.3]} 35.
Rb2 {[%clk 0:00:07.7]} 35... a6 {[%clk 0:00:33.1]} 36. a4 {[%clk 0:00:06]} 36...
Rd5 {[%clk 0:00:32.7]} 37. b5 {[%clk 0:00:05.4]} 37... axb5 {[%clk 0:00:32.9]}
38. axb5 {[%clk 0:00:06.2]} 38... e5 {[%clk 0:00:33.4]} 39. c6 {[%clk
0:00:06.2]} 39... exd4 {[%clk 0:00:26]} 40. exd4 {[%clk 0:00:04.2]} 40... bxc6
{[%clk 0:00:11.7]} 41. bxc6 {[%clk 0:00:05.1]} 41... Rxd4 {[%clk 0:00:10]} 0-1

[Event "*** Titled Tuesday Blitz"]
[Site "Chess.com"]
[Date "2020.12.01"]
[Round "7"]
[White "chessmadara"]
[Black "Klavdia_Nik"]
[Result "1-0"]
[WhiteElo "2191"]
[BlackElo "2059"]
[TimeControl "180+1"]
[EndTime "11:16:36 PST"]
[Termination "chessmadara won on time"]

1. e4 {[%clk 0:03:00.9]} 1... b6 {[%clk 0:02:54.5]} 2. d4 {[%clk 0:02:59.2]}
2... Bb7 {[%clk 0:02:54.9]} 3. Nc3 {[%clk 0:02:59.7]} 3... d6 {[%clk 0:02:53.3]}
4. a3 {[%clk 0:03:00.3]} 4... g6 {[%clk 0:02:52.3]} 5. Be2 {[%clk 0:02:50.8]}
5... Bg7 {[%clk 0:02:52.5]} 6. Be3 {[%clk 0:02:51.3]} 6... e6 {[%clk 0:02:47.9]}
7. Qd2 {[%clk 0:02:50.7]} 7... h6 {[%clk 0:02:46.7]} 8. O-O-O {[%clk 0:02:42.8]}
8... Ne7 {[%clk 0:02:46.7]} 9. Kb1 {[%clk 0:02:42.2]} 9... Nd7 {[%clk 0:02:42]}
10. h4 {[%clk 0:02:40]} 10... a6 {[%clk 0:02:37]} 11. Nh3 {[%clk 0:02:39.5]}
11... b5 {[%clk 0:02:35.2]} 12. f3 {[%clk 0:02:38.6]} 12... Nb6 {[%clk
0:02:30.5]} 13. Nf2 {[%clk 0:02:33.4]} 13... Nc4 {[%clk 0:02:29.5]} 14. Bxc4
{[%clk 0:02:31.4]} 14... bxc4 {[%clk 0:02:29.6]} 15. h5 {[%clk 0:02:15.6]} 15...
g5 {[%clk 0:02:24.7]} 16. f4 {[%clk 0:02:14.3]} 16... gxf4 {[%clk 0:02:15.9]}
17. Bxf4 {[%clk 0:02:15.2]} 17... Nc6 {[%clk 0:01:56.6]} 18. d5 {[%clk
0:02:04.9]} 18... Ne5 {[%clk 0:01:51.5]} 19. Bxe5 {[%clk 0:01:26]} 19... Bxe5
{[%clk 0:01:50.6]} 20. Ng4 {[%clk 0:01:26.6]} 20... Qg5 {[%clk 0:01:27.3]} 21.
Qxg5 {[%clk 0:01:23.8]} 21... hxg5 {[%clk 0:01:25.6]} 22. h6 {[%clk 0:01:22.2]}
22... Ke7 {[%clk 0:01:18.1]} 23. Nxe5 {[%clk 0:01:02.9]} 23... dxe5 {[%clk
0:01:17.3]} 24. Na4 {[%clk 0:01:03.4]} 24... exd5 {[%clk 0:01:13.4]} 25. exd5
{[%clk 0:01:02.6]} 25... Rad8 {[%clk 0:01:13]} 26. Nc3 {[%clk 0:00:48.7]} 26...
f5 {[%clk 0:01:05.2]} 27. Rde1 {[%clk 0:00:45.2]} 27... Kf6 {[%clk 0:01:01.3]}
28. h7 {[%clk 0:00:34.3]} 28... e4 {[%clk 0:00:54.9]} 29. g4 {[%clk 0:00:29.4]}
29... Bxd5 {[%clk 0:00:47.6]} 30. gxf5 {[%clk 0:00:20.4]} 30... Kxf5 {[%clk
0:00:42.8]} 31. Rh6 {[%clk 0:00:18.9]} 31... Bb7 {[%clk 0:00:28.8]} 32. Rf1+
{[%clk 0:00:12.6]} 32... Ke5 {[%clk 0:00:28.1]} 33. Rff6 {[%clk 0:00:11.1]}
33... Rd7 {[%clk 0:00:26.6]} 34. Ne2 {[%clk 0:00:10.2]} 34... Rhxh7 {[%clk
0:00:22.8]} 35. Re6+ {[%clk 0:00:10.1]} 35... Kd5 {[%clk 0:00:22.3]} 36. Reg6
{[%clk 0:00:08.9]} 36... Rxh6 {[%clk 0:00:21.8]} 37. Rxh6 {[%clk 0:00:09.8]}
37... Rg7 {[%clk 0:00:19.8]} 38. Ng3 {[%clk 0:00:08.8]} 38... Ke5 {[%clk
0:00:18.8]} 39. Kc1 {[%clk 0:00:07.3]} 39... Kf4 {[%clk 0:00:18.1]} 40. Nh5+
{[%clk 0:00:06.6]} 40... Kf3 {[%clk 0:00:10.4]} 41. Nxg7 {[%clk 0:00:07.5]}
41... g4 {[%clk 0:00:07.2]} 42. Kd2 {[%clk 0:00:07]} 42... e3+ {[%clk
0:00:03.7]} 43. Ke1 {[%clk 0:00:06.6]} 43... g3 {[%clk 0:00:02.3]} 44. Nf5
{[%clk 0:00:07]} 1-0

[Event "*** Titled Tuesday Blitz"]
[Site "Chess.com"]
[Date "2020.12.01"]
[Round "7"]
[White "temus_galaktionov"]
[Black "Euwe1234"]
[Result "0-1"]
[WhiteElo "2689"]
[BlackElo "2568"]
[TimeControl "180+1"]
[EndTime "11:16:37 PST"]
[Termination "Euwe1234 won by resignation"]

1. d4 {[%clk 0:03:00.9]} 1... d5 {[%clk 0:02:56.7]} 2. Nf3 {[%clk 0:03:01.3]}
2... Nf6 {[%clk 0:02:56]} 3. c4 {[%clk 0:03:01.8]} 3... e6 {[%clk 0:02:55.3]} 4.
Nc3 {[%clk 0:03:01.3]} 4... c6 {[%clk 0:02:55.1]} 5. Qb3 {[%clk 0:02:58.1]} 5...
dxc4 {[%clk 0:02:34.5]} 6. Qxc4 {[%clk 0:02:59]} 6... b5 {[%clk 0:02:33.8]} 7.
Qd3 {[%clk 0:02:58.9]} 7... a6 {[%clk 0:02:25.7]} 8. Bg5 {[%clk 0:02:57.4]} 8...
Nbd7 {[%clk 0:02:21.8]} 9. e4 {[%clk 0:02:57.2]} 9... h6 {[%clk 0:02:18.5]} 10.
Bh4 {[%clk 0:02:57.2]} 10... c5 {[%clk 0:02:16]} 11. e5 {[%clk 0:02:56.1]} 11...
g5 {[%clk 0:02:14.4]} 12. Nxg5 {[%clk 0:02:52.1]} 12... hxg5 {[%clk 0:02:08.7]}
13. Bxg5 {[%clk 0:02:53]} 13... Qb6 {[%clk 0:02:09]} 14. exf6 {[%clk 0:02:52.4]}
14... cxd4 {[%clk 0:01:59.3]} 15. Ne4 {[%clk 0:02:40.9]} 15... Bb7 {[%clk
0:01:58.8]} 16. f3 {[%clk 0:02:24.7]} 16... Ne5 {[%clk 0:01:52.3]} 17. Qd2
{[%clk 0:02:15.5]} 17... Bxe4 {[%clk 0:01:51.5]} 18. fxe4 {[%clk 0:02:15.1]}
18... d3 {[%clk 0:01:51.6]} 19. Be3 {[%clk 0:01:57.4]} 19... Bc5 {[%clk
0:01:42.9]} 20. Bf4 {[%clk 0:01:40.8]} 20... Nc4 {[%clk 0:01:31.1]} 21. Qxd3
{[%clk 0:01:40.2]} 21... Rd8 {[%clk 0:01:29.8]} 22. Qc3 {[%clk 0:01:18.7]} 22...
Bf2+ {[%clk 0:01:23]} 23. Ke2 {[%clk 0:01:18.4]} 23... Bd4 {[%clk 0:01:19.9]}
24. Qc2 {[%clk 0:01:14.5]} 24... Be5 {[%clk 0:01:14.9]} 25. Bg5 {[%clk
0:00:34.6]} 25... Rh5 {[%clk 0:01:04.8]} 26. Rd1 {[%clk 0:00:22.2]} 26... Rxg5
{[%clk 0:01:00.5]} 27. Rxd8+ {[%clk 0:00:21.1]} 27... Kxd8 {[%clk 0:01:00.8]}
28. Qd3+ {[%clk 0:00:20.7]} 28... Ke8 {[%clk 0:00:58.4]} 29. b3 {[%clk
0:00:21.6]} 29... Nd6 {[%clk 0:00:53.2]} 30. g3 {[%clk 0:00:21.3]} 30... Bxf6
{[%clk 0:00:48.5]} 31. Bg2 {[%clk 0:00:21.2]} 31... Rc5 {[%clk 0:00:46.4]} 32.
Rd1 {[%clk 0:00:20.5]} 32... Be5 {[%clk 0:00:46.3]} 33. Kf1 {[%clk 0:00:16.5]}
33... Qc7 {[%clk 0:00:45.4]} 34. Rd2 {[%clk 0:00:15.1]} 34... Rc1+ {[%clk
0:00:43.9]} 35. Kf2 {[%clk 0:00:12.8]} 35... Qc5+ {[%clk 0:00:42.8]} 36. Ke2
{[%clk 0:00:12.7]} 36... Qg1 {[%clk 0:00:39.7]} 37. Kf3 {[%clk 0:00:13.2]} 37...
Qxh2 {[%clk 0:00:34.2]} 38. Kg4 {[%clk 0:00:11.6]} 38... Rc3 {[%clk 0:00:32.6]}
39. Bh3 {[%clk 0:00:05.3]} 39... Rxd3 {[%clk 0:00:31.7]} 40. Rxh2 {[%clk
0:00:06.2]} 40... Rxg3+ {[%clk 0:00:31.8]} 41. Kh4 {[%clk 0:00:07.1]} 41... Nxe4
{[%clk 0:00:28.6]} 42. Rc2 {[%clk 0:00:07]} 42... Bf6+ {[%clk 0:00:27.7]} 43.
Kh5 {[%clk 0:00:07.6]} 43... Rxh3+ {[%clk 0:00:27.9]} 44. Kg4 {[%clk 0:00:08.5]}
44... Rh4+ {[%clk 0:00:27.7]} 45. Kf3 {[%clk 0:00:08.8]} 45... Ng5+ {[%clk
0:00:26.8]} 46. Kg3 {[%clk 0:00:09]} 46... Rd4 {[%clk 0:00:25.8]} 47. Re2 {[%clk
0:00:06.9]} 47... Kd7 {[%clk 0:00:25.1]} 48. Kf2 {[%clk 0:00:06.6]} 48... Rd3
{[%clk 0:00:21.6]} 49. Rc2 {[%clk 0:00:06]} 49... Bd4+ {[%clk 0:00:21.6]} 50.
Ke2 {[%clk 0:00:06.6]} 50... Re3+ {[%clk 0:00:22]} 51. Kf1 {[%clk 0:00:06.9]}
51... Nf3 {[%clk 0:00:22]} 52. Kg2 {[%clk 0:00:06.6]} 52... Ne1+ {[%clk
0:00:21.1]} 0-1